Cogmind - Beta 15 @@@ ROGUE MODE // 2025.08.24 @ 08:42:05 Player: beans Result: Destroyed by G-67 Veteran with Field Laser Performance ------------- Evolutions (4) 2000 Regions Visited (6) 1200 Robots Destroyed (98) 490 Value Destroyed (3087) 3087 Prototype IDs (6) 120 Alien Tech Used (0) 0 Bonus (2238) 2238 TOTAL SCORE: 9135 Bonus ------- High Alert Combat Kills 1009 Follower Combat Kills 629 Met Imprinter 300 Was Imprinted 300 Cogmind --------- Core Integrity 0/850 Matter 300/300 Energy 50/100 System Corruption 1% Temperature Cool (9) Movement Core (350) Ox6 Location -6/Factory Parts ------- > --- POWER (2) -------- (None) > --- PROPULSION (4) --- (None) > --- UTILITY (5) ------ Improved Cooling System Improved Targeting Computer Improved Targeting Computer Advanced Targeting Computer > --- WEAPON (4) ------- Improved Lightning Gun Flak Gun Heavy Flak Cannon > --- INVENTORY (5) ---- Advanced Sensor Array Energy Filter Improved Reaction Control System Thermal Defense Suite Hacking Drone Bay (1/1) Peak State ------------ > --- POWER ------------ Light Fission Core Light Fission Core > --- PROPULSION ------- Medium Treads > --- UTILITY ---------- Improved Cooling System Improved Targeting Computer Improved Targeting Computer Advanced Targeting Computer Thermal Defense Suite > --- WEAPON ----------- Heavy Laser Ion Cannon Heavy Plasma Cannon Magnetic Acceleration Cannon > --- INVENTORY -------- Energy Filter Hacking Drone Bay Gauss Rifle Rocket Launcher Mining Laser [Rating: 50] Favorites ----------- Power Light Angular Momentum Engine Engine Light Angular Momentum Engine Power Core Micro Nuclear Core Reactor Light Antimatter Reactor Propulsion Improved Flight Unit Treads Light Treads Leg Carbon-fiber Leg Flight Unit Improved Flight Unit Utility Improved Targeting Computer Device Improved Cooling System Processor Improved Targeting Computer Protection Core Shielding Weapon Lightning Gun Energy Gun Lightning Gun Energy Cannon Advanced Beam Cannon Ballistic Gun Flak Gun Ballistic Cannon Bore Cannon Launcher Rocket Launcher Special Weapon Mining Laser Build | -11 -10 -9 -9 -7 -6 -6 ------- Run | Yrd Mat Mat Min Zio Pro Fac Slots Evolved 8 | . . 2 . . . 6 Power 1 | . . . . . . 1 Propulsion 2 | . . . . . . 2 Utility 3 | . . . . . . 3 Weapon 2 | . . 2 . . . . Parts Attached 59 | 4 3 8 . 5 10 29 Power 10 | . . 1 . . 2 7 Engine 6 | . . 1 . . 2 3 Core 3 | . . . . . . 3 Reactor 1 | . . . . . . 1 Propulsion 11 | 2 . 1 . . 4 4 Treads 7 | 2 . . . . 1 4 Leg 3 | . . . . . 3 . Wheel . | . . . . . . . Hover . | . . . . . . . Flight 1 | . . 1 . . . . Utility 14 | . 2 2 . 1 2 7 Device 7 | . . . . 1 1 5 Storage . | . . . . . . . Processor 5 | . . 2 . . 1 2 Hackware . | . . . . . . . Protection 2 | . 2 . . . . . Artifact . | . . . . . . . Weapon 24 | 2 1 4 . 4 2 11 Energy Gun 3 | . . . . 1 1 1 Energy Cannon 3 | . . 1 . . . 2 Ballistic Gun 11 | 2 1 2 . 2 . 4 Ballistic Cannon 4 | . . . . . 1 3 Launcher 2 | . . 1 . . . 1 Special Weapon 1 | . . . . 1 . . Impact Weapon . | . . . . . . . Slashing Weapon . | . . . . . . . Piercing Weapon . | . . . . . . . Special Melee Weapon . | . . . . . . . Unidentified Prototypes 6 | . . 3 . 1 . 2 Parts Lost 36 | . 1 7 1 . 2 25 Power 9 | . . . 1 . . 8 Propulsion 7 | . 1 1 . . . 5 Utility 4 | . . 1 . . . 3 Weapon 16 | . . 5 . . 2 9 Highest Loss Streak 8 | . 1 4 1 . 2 8 To Critical Strikes 1 | . . . . . . 1 Average Backups 4 | . 1 2 4 4 5 4 Power . | . . . . . . . Propulsion . | . . . . . . . Utility 2 | . . 1 3 2 3 2 Weapon 1 | . 1 . 1 2 2 1 Tool/Special . | . . . . . . . Unused Backups 7 | . 2 . . 2 1 2 Power . | . . . . . . . Propulsion . | . . . . . . . Utility 6 | . 2 . . 1 1 2 Weapon 1 | . . . . 1 . . Tool/Special . | . . . . . . . Average Slot Usage (%) 63 | . 64 56 53 57 78 69 Engine 3 | . . 5 9 . 4 5 Treads 4 | . 15 2 . . 5 8 Leg 1 | . . . . . 6 . Flight 5 | . . 5 11 11 2 . Device 3 | . . . . . 3 12 Processor 11 | . . 6 11 11 11 17 Protection 8 | . 20 13 11 11 7 . Energy Gun 7 | . . . . 10 14 4 Energy Cannon 2 | . . 6 11 . . 4 Ballistic Gun 11 | . 27 13 . 13 14 4 Ballistic Cannon 2 | . . . . . 8 5 Peak Build Rating 50 | 4 5 12 12 19 32 50 Average Rating 21 | 2 4 8 11 15 28 40 On Entrance 11 | . 4 5 12 9 19 31 Naked Turns . | . . . . . . . Heaviest Build 57 | 3 6 13 13 11 29 57 Greatest Support 68 | 40 40 20 5 5 35 68 Greatest Overweight (x) 14 | . . 4 2 2 3 14 Average Overweight (x) . | . . 1 1 . . . Largest Inventory Capacity 5 | 5 5 5 5 5 5 5 Average Capacity 5 | 5 5 5 5 5 5 5 Most Carried 5 | 4 5 5 5 5 5 5 Average Carried 4 | . 1 2 4 4 5 4 Final Capacity 5 | 5 5 5 5 5 5 5 Final Carried 5 | . 5 4 5 5 5 5 Class Distribution -------------------- 39% | Mutant 23% | Scavenger-Gunner 22% | Gunner 10% | Derelict-Gunner Dominant Class ---------------- Mutant | -10/Materials Mutant | -9/Materials Mutant | -9/Mines Gunner | -7/Zion Derelict-Gunner | -6/Proximity Caves Scavenger-Gunner | -6/Factory Resources | -11 -10 -9 -9 -7 -6 -6 ----------- Run | Yrd Mat Mat Min Zio Pro Fac Matter Collected 2279 | 199 206 312 52 105 340 1065 Remotely . | . . . . . . . Salvage Created 3814 | 26 338 654 261 . 256 2279 Parts 206 | 3 15 39 18 . 6 125 Haulers Intercepted 4 | . 1 2 . . . 1 Recyclers Shooed 5 | . 2 1 . . . 2 Parts Field Recycled . | . . . . . . . Retrieved Matter . | . . . . . . . Parts Self-Destructed 17 | . . . . 1 16 . Prevented . | . . . . . . . Kills | -11 -10 -9 -9 -7 -6 -6 ------- Run | Yrd Mat Mat Min Zio Pro Fac Combat Hostiles Destroyed 56 | . 5 7 4 . 5 35 Melee 1 | . . . . . . 1 Guns 19 | . 4 3 . . 1 11 Cannons 29 | . . 3 4 . 4 18 AOE 7 | . 1 1 . . . 5 Classes Destroyed 18 | 1 6 3 1 . 1 6 Worker 11 | . . 2 . . . 9 Builder 12 | . 1 3 3 . . 5 Tunneler 2 | 1 . . 1 . . . Hauler 4 | . 1 2 . . . 1 Recycler 8 | . 2 3 1 . . 2 Operator 1 | . . 1 . . . . Watcher 4 | . 1 1 . . . 2 Swarmer 4 | . 1 . 3 . . . Saboteur 1 | . . . . . . 1 Grunt 31 | . 4 5 . . 4 18 Brawler 2 | . . . 1 . . 1 Duelist 3 | . . . . . 1 2 Sentry 3 | . . 2 . . . 1 Specialist 4 | . . . . . . 4 Hunter 2 | . . . . . . 2 Programmer 3 | . . . . . . 3 Heavy 2 | . . . . . . 2 Behemoth 1 | . . . . . . 1 Best Kill Streak 13 | 1 5 13 4 . 4 12 Combat Bots Only 8 | . 2 4 2 . 4 8 Max Kills in Single Turn 3 | 1 2 2 1 . 1 3 Gunslinging . | . . . . . . . Exploded 2 | . 1 1 . . . 2 Melee 1 | . . . . . . 1 Uniques/NPCs Destroyed . | . . . . . . . Combat | -11 -10 -9 -9 -7 -6 -6 -------- Run | Yrd Mat Mat Min Zio Pro Fac Hostile Shots Fired 378 | . 26 52 19 . 45 236 Missed 95 | . 6 13 8 . 15 53 Hits 283 | . 20 39 11 . 30 183 Melee 2 | . . . . . . 2 Projectile 281 | . 20 39 11 . 30 181 Critical Strikes 11 | . . 2 . 1 1 7 Actively Blocked 1 | . . 1 . . . . Damage Taken 5445 | . 552 636 110 26 562 3559 Core 1242 | . 161 146 14 . 56 865 Absorbed by Shields . | . . . . . . . Redirected to Shielding 91 | . 18 57 3 . 13 . Ignored by Resistances 130 | . . . . . . 130 Core Remaining (%) 60 | 100 35 . . . 46 . Volleys Fired 241 | 1 23 40 33 8 19 117 Largest 4 | 2 2 4 1 3 3 4 Hottest 263 | 40 40 90 68 107 117 263 Shots Fired 492 | 2 46 90 33 15 48 258 Gun 266 | 2 46 59 . 13 33 113 Cannon 210 | . . 19 33 2 15 141 Launcher 16 | . . 12 . . . 4 Special . | . . . . . . . Kinetic 310 | 2 46 59 . 7 43 153 Thermal 153 | . . 19 33 2 2 97 Explosive 16 | . . 12 . . . 4 Electromagnetic 13 | . . . . 6 3 4 Robot Hit Streak 23 | 1 22 7 7 2 9 23 Robot Miss Streak 13 | 1 3 4 3 13 8 6 Penetration Max 1 | . . . . . . 1 Secondary Targets . | . . . . . . . Shots Hit Robots 335 | 1 31 51 21 4 35 192 Core Hits 197 | 1 12 28 9 2 28 117 Critical Kills 4 | . . . . . 3 1 Critical Parts Destroyed 11 | . . 1 . . 5 5 Critical Strikes 21 | . . 1 . . 8 12 Destroy 15 | . . 1 . . 8 6 Blast 6 | . . . . . . 6 Melee Attacks . | . . . . . . . Impact . | . . . . . . . Slashing . | . . . . . . . Piercing . | . . . . . . . Sneak Attacks . | . . . . . . . Combat Hostiles . | . . . . . . . Follow-up Attacks . | . . . . . . . Damage Inflicted 9348 | 21 776 1261 473 38 644 6135 Guns 3362 | 21 416 441 . 38 437 2009 Cannons 4104 | . . 349 473 . 207 3075 Explosions 1882 | . 360 471 . . . 1051 Melee . | . . . . . . . Ramming . | . . . . . . . Kinetic 4466 | 21 416 441 . 38 611 2939 Thermal 3534 | . 360 496 473 . . 2205 Explosive 1262 | . . 324 . . . 938 Electromagnetic 86 | . . . . . 33 53 Impact . | . . . . . . . Slashing . | . . . . . . . Piercing . | . . . . . . . Highest Corruption 1 | . . . . . . 1 Average Corruption 1 | . . . . . . 1 Corruption Purged . | . . . . . . . Corruption Blocked . | . . . . . . . Effects 2 | . . . . . . 2 Data Loss (major) 1 | . . . . . . 1 Alerts 1 | . . . . . . 1 Overload Shots . | . . . . . . . Overflow Damage 266 | . 56 61 4 . . 145 Projectiles 21 | . . . 4 . . 17 Explosions 245 | . 56 61 . . . 128 Melee . | . . . . . . . Knockbacks 22 | . . . . . 1 21 Impact . | . . . . . . . Kinetic 20 | . . . . . 1 19 Secondary 2 | . . . . . . 2 Self-Inflicted Damage 523 | . 288 124 . . . 111 Shots 8 | . 3 3 . . . 2 Rammed . | . . . . . . . Targets Rammed . | . . . . . . . Kicked . | . . . . . . . Crushed . | . . . . . . . Highest Temperature 327 | . 11 208 260 48 309 327 Average Temperature 64 | . 11 50 70 16 103 57 Received Heat Transfer 1868 | . 117 261 21 . 201 1268 Siege Activations . | . . . . . . . Martial Activations . | . . . . . . . Shielding Activations . | . . . . . . . Robots Disrupted . | . . . . . . . Combat Hostiles . | . . . . . . . Robots Corrupted . | . . . . . . . Combat Hostiles . | . . . . . . . Parts Fried 1 | . . . . . 1 . Impact Corruptions . | . . . . . . . Robots Melted 1 | . . . . . . 1 Combat Hostiles . | . . . . . . . Parts Melted 8 | . . 2 2 . 1 3 Heat Transferred 5304 | . 400 729 851 . . 3324 Parts Sabotaged 6 | . . . . . . 6 Parts Stolen . | . . . . . . . Parts Stripped . | . . . . . . . Power Chain Reactions . | . . . . . . . Alert | -11 -10 -9 -9 -7 -6 -6 ------- Run | Yrd Mat Mat Min Zio Pro Fac Maximum Alert Level 4 | . . . . . . 4 Low Security (%) 50 | 100 100 100 100 . . . Level 1 . | . . . . . . . Level 2 17 | . . . . . . 35 Level 3 8 | . . . . . . 16 Level 4 23 | . . . . . . 47 Level 5 . | . . . . . . . High Security . | . . . . . . . Max Security . | . . . . . . . Peak Influence 1227 | 5 144 118 68 . . 1227 Initial 483 | . 3 11 28 . . 483 Average 459 | . 72 68 20 . . 878 Influence Increases 3444 | 5 271 283 199 . 538 2148 Destroy 0b10 Robot/C 1440 | . 100 140 120 . 220 860 Destroy 0b10 Robot/NC 255 | 5 25 60 25 . 10 130 Destroy Leader 348 | . 24 46 20 . 40 218 Allied During Kill 515 | . . . 19 . 268 228 Disable Machine 225 | . 45 15 15 . . 150 Destroy Structure 166 | . 47 22 . . . 97 Advance Influence 450 | . . . . . . 450 Lose Combat Pursuer 45 | . 30 . . . . 15 Influence Decreases 2235 | . 249 237 231 41 484 993 Entered New Map 125 | . 2 16 45 41 . 21 Time Decay 1478 | . 237 161 161 . 377 542 Lost Part 350 | . 10 60 10 . 20 250 Lost Ally 282 | . . . 15 . 87 180 Squads Dispatched 15 | . 1 1 . . . 13 Investigation . | . . . . . . . Extermination 1 | . . . . . . 1 Reinforcement 10 | . 1 1 . . . 8 Assault 4 | . . . . . . 4 Garrison . | . . . . . . . Intercept . | . . . . . . . Searches Triggered . | . . . . . . . Construction Impeded 4 | . . 1 . . . 3 Haulers Reinforced 1 | . . . . . . 1 Active Scanning Responses . | . . . . . . . Cargo Convoy Interrupts . | . . . . . . . Stealth | -11 -10 -9 -9 -7 -6 -6 --------- Run | Yrd Mat Mat Min Zio Pro Fac Distress Signals 11 | . 2 2 . . 3 4 Communications Jammed . | . . . . . . . Distress Signals . | . . . . . . . Times Spotted 98 | . 13 13 6 1 11 54 Peak Tracking Total 6 | . 3 5 3 1 4 6 Tactical Retreats 2 | . 1 . . . . 1 Traps | -11 -10 -9 -9 -7 -6 -6 ------- Run | Yrd Mat Mat Min Zio Pro Fac Traps Triggered 2 | . 1 1 . . . . Indirectly . | . . . . . . . Trap Hack Attempts . | . . . . . . . Triggered . | . . . . . . . Disarmed . | . . . . . . . Reprogrammed . | . . . . . . . Reused . | . . . . . . . Traps Extracted . | . . . . . . . Installed . | . . . . . . . Triggered . | . . . . . . . Machines | -11 -10 -9 -9 -7 -6 -6 ---------- Run | Yrd Mat Mat Min Zio Pro Fac Machines Disabled 15 | . 3 1 1 . . 10 Max in Single Turn 6 | . 3 1 . . . 6 Machines Repaired . | . . . . . . . Machines Dismantled . | . . . . . . . Machines Sabotaged . | . . . . . . . Overloaded Fab Kills . | . . . . . . . Hacking | -11 -10 -9 -9 -7 -6 -6 --------- Run | Yrd Mat Mat Min Zio Pro Fac Machines Accessed . | . . . . . . . Terminals . | . . . . . . . Fabricators . | . . . . . . . Repair Stations . | . . . . . . . Recycling Units . | . . . . . . . Scanalyzers . | . . . . . . . Garrison Access . | . . . . . . . Total Hacks . | . . . . . . . Successful . | . . . . . . . Failed . | . . . . . . . Catastrophic . | . . . . . . . Database Lockouts . | . . . . . . . Manual . | . . . . . . . Terminals . | . . . . . . . Fabricators . | . . . . . . . Repair Stations . | . . . . . . . Recycling Units . | . . . . . . . Scanalyzers . | . . . . . . . Garrison Access . | . . . . . . . Terminal Hacks . | . . . . . . . Fabricator Hacks . | . . . . . . . Repair Station Hacks . | . . . . . . . Recycling Unit Hacks . | . . . . . . . Scanalyzer . | . . . . . . . Garrison Access Hacks . | . . . . . . . Unauthorized Hacks . | . . . . . . . Terminals . | . . . . . . . Fabricators . | . . . . . . . Repair Stations . | . . . . . . . Recycling Units . | . . . . . . . Scanalyzers . | . . . . . . . Garrison Access . | . . . . . . . Data Cores Recovered 1 | . . 1 . . . . Used . | . . . . . . . Hacking Detections . | . . . . . . . Full Trace Events . | . . . . . . . Feedback Events . | . . . . . . . Feedback Blocked . | . . . . . . . Robot Schematics Acquired 4 | . . . . 4 . . Robots Built . | . . . . . . . Authchips . | . . . . . . . Time . | . . . . . . . Total Robot Build Rating . | . . . . . . . Part Schematics Acquired 15 | . . . . 15 . . Parts Built . | . . . . . . . Authchips . | . . . . . . . Time . | . . . . . . . Total Part Build Rating . | . . . . . . . Parts Repaired . | . . . . . . . Time . | . . . . . . . Parts Recycled . | . . . . . . . Recycled Matter . | . . . . . . . Retrieved Matter . | . . . . . . . Retrieved Components . | . . . . . . . Parts Scanalyzed . | . . . . . . . Part Schematics Acquired . | . . . . . . . Parts Damaged . | . . . . . . . Bothacking | -11 -10 -9 -9 -7 -6 -6 ------------ Run | Yrd Mat Mat Min Zio Pro Fac Used RIF Installer . | . . . . . . . Robots Hacked . | . . . . . . . Non-combat . | . . . . . . . Combat . | . . . . . . . Robot Hacks Applied . | . . . . . . . Relay Couplers Released . | . . . . . . . Fabnet Peak Effective % . | . . . . . . . Robots Rewired . | . . . . . . . Allies Hacked . | . . . . . . . Hacks Repelled . | . . . . . . . Allies | -11 -10 -9 -9 -7 -6 -6 -------- Run | Yrd Mat Mat Min Zio Pro Fac Total Allies 18 | . . . 4 14 . . Largest Group 16 | . . . 3 16 16 11 Highest-Rated Group 435 | . . . 63 435 435 308 Highest-Rated Ally 41 | . . . 31 41 41 41 Total Orders . | . . . . . . . Ally Attacks 135 | . . . 19 10 55 51 Total Damage 3010 | . . . 221 70 661 2058 Kills 25 | . . . 2 . 8 15 Allies Corrupted 1 | . . . 1 . . . Allies Melted . | . . . . . . . Intel | -11 -10 -9 -9 -7 -6 -6 ------- Run | Yrd Mat Mat Min Zio Pro Fac Active Infowar (turns) . | . . . . . . . Robot Analysis Total . | . . . . . . . Derelict Logs Recovered 7 | . . . 3 2 2 . Drone Launches . | . . . . . . . Drone Recoveries . | . . . . . . . Exploration | -11 -10 -9 -9 -7 -6 -6 ------------- Run | Yrd Mat Mat Min Zio Pro Fac Turns Passed 6810 | 53 555 351 620 2546 1139 1546 Spaces Moved 4056 | 36 294 133 343 2096 636 518 Core 51 | 14 . 29 . . 2 6 Treads 1151 | 22 294 29 . . 294 512 Legs 241 | . . . . . 241 . Wheels . | . . . . . . . Hover . | . . . . . . . Flight 2613 | . . 75 343 2096 99 . Fastest Speed 40 | 50 160 50 40 40 120 160 Average Speed 130 | 117 160 163 148 94 148 216 Slowest Speed 750 | 160 160 250 180 180 200 750 Overloaded Moves . | . . . . . . . Propulsion Burnouts . | . . . . . . . Robots Hopped . | . . . . . . . Potential Cave-ins . | . . . . . . . Cave-ins Triggered . | . . . . . . . Exploration Rate (%) 50 | 4 53 24 76 90 88 17 Regions Visited 6 Branch Regions 3 Pre-discovered Areas 2 | . . . 1 1 . . Known Exits Taken . | . . . . . . . Unknown Exits Taken 6 | 1 1 1 1 1 1 . Scrap Searched 6 | . . . 1 3 2 . Spaces Dug . | . . . . . . . Terrain Destroyed 180 | . 55 22 . . 5 98 Melee . | . . . . . . . Projectile 23 | . . . . . 5 18 AOE 157 | . 55 22 . . . 80 Terrain Rammed . | . . . . . . . Walls Destroyed . | . . . . . . . Machines Disabled . | . . . . . . . Actions | -11 -10 -9 -9 -7 -6 -6 --------- Run | Yrd Mat Mat Min Zio Pro Fac Total 5160 | 46 334 199 419 2648 793 721 Wait 729 | . 2 8 43 531 122 23 Move 4050 | 35 293 132 342 2095 635 518 Hop . | . . . . . . . Pick Up 48 | 5 10 8 1 3 1 20 Fast Attach 27 | . . . . 3 8 16 Attach 36 | 4 3 9 . 1 . 19 Detach 1 | . . . . . . 1 Swap 8 | . . 1 . 3 2 2 Drop 20 | 1 3 1 . 4 6 5 Fire 241 | 1 23 40 33 8 19 117 Melee . | . . . . . . . Ram . | . . . . . . . Kick . | . . . . . . . Crush . | . . . . . . . Escape Stasis . | . . . . . . . Rewire . | . . . . . . . Trap . | . . . . . . . Miscellaneous . | . . . . . . . Route ------- -11/Scrapyard -10/Materials -9/Materials -9/Mines (discovered 3 exits: [*Mat x2] / *Zio) -7/Zion (discovered 2 exits: Dee / [*Pro]) -6/Proximity Caves -6/Factory (discovered 1 exit: [*Fac]) History --------- Turn | Location | Event 4 | -11/Scrapyard | Discovered new exit (range 16) 54 | -11/Scrapyard | Entered Materials 117 | -10/Materials | Core integrity fell below 50% 309 | -10/Materials | Build established: Mutant 574 | -10/Materials | Discovered new exit (range 3) 609 | -10/Materials | Entered another Materials area 609 | -9/Materials | Evolved 2 slots: Weapon x2 737 | -9/Materials | Lost 4 parts (1n1u2w) 784 | -9/Materials | Lost 3 parts (3w) 942 | -9/Materials | Discovered new exit (range 8) 960 | -9/Materials | Entered Mines 978 | -9/Mines | Discovered new exit (range 5) 1017 | -9/Mines | Assisted by bots powering up and referring to "LRC-V3" 1117 | -9/Mines | Learned Materials terminal intel 1137 | -9/Mines | Learned Materials garrison access intel 1197 | -9/Mines | Learned location of Zion (-7) 1367 | -9/Mines | Discovered new exit (range 6) 1538 | -9/Mines | Received a Mining Laser from a helpful Derelict 1557 | -9/Mines | A Derelict revealed a hidden shortcut to a safe place 1580 | -9/Mines | Entered Zion 1580 | -7/Zion | Accompanied by 3 allies 1808 | -7/Zion | Met Imprinter 1816 | -7/Zion | Imprinted 1818 | -7/Zion | Declared Zion's savior 2048 | -7/Zion | Gained Derelict followers 2087 | -7/Zion | Given the Hacking Drone Bay 2090 | -7/Zion | Found Prototype Device 2091 | -7/Zion | Identified Hacking Drone Bay 2107 | -7/Zion | Gained Derelict followers 2189 | -7/Zion | Learned 4 Factory zone layouts 2594 | -7/Zion | Discovered new exit (range 12) 2991 | -7/Zion | Build established: Gunner 3257 | -7/Zion | Identified exit to Deep Caves 4126 | -7/Zion | Entered Proximity Caves 4126 | -6/Proximity Caves | Accompanied by 16 allies 4180 | -6/Proximity Caves | Learned Factory security intel 4200 | -6/Proximity Caves | Spotter reported a threat 4237 | -6/Proximity Caves | Spotter reported a threat 4329 | -6/Proximity Caves | Spotter reported a threat 4351 | -6/Proximity Caves | Attracted the attention of an 0b10 checkpoint 4460 | -6/Proximity Caves | Build established: Derelict-Gunner 4469 | -6/Proximity Caves | Learned Factory terminal intel 4662 | -6/Proximity Caves | Spotted B-75 Beast 4674 | -6/Proximity Caves | Allies destroyed B-75 Beast 4869 | -6/Proximity Caves | Core integrity fell below 50% 5189 | -6/Proximity Caves | Build established: Scavenger-Gunner 5203 | -6/Proximity Caves | Discovered new exit (range 16) 5265 | -6/Proximity Caves | Entered Factory 5265 | -6/Factory | Accompanied by 11 allies 5265 | -6/Factory | Evolved 6 slots: Power x1, Propulsion x2, Utility x3 5268 | -6/Factory | Loaded intel: 28 terminal locations 5597 | -6/Factory | Spotted B-75 Beast 5598 | -6/Factory | Lost 4 allies 5620 | -6/Factory | Destroyed B-75 Beast 5665 | -6/Factory | Lost 3 parts (1n1u1w) 5684 | -6/Factory | Lost 3 allies 5965 | -6/Factory | First assault squad dispatched 6029 | -6/Factory | Lost 3 parts (1n2w) 6091 | -6/Factory | Destroyed 8 combat bots 6348 | -6/Factory | Core integrity fell below 50% 6395 | -6/Factory | Core integrity fell below 20% 6411 | -6/Factory | Lost 8 parts (2p1n5w) 6671 | -6/Factory | Terminal network hard line cut 6680 | -6/Factory | Discovered new exit (range 6) 6787 | -6/Factory | Lost 3 parts (2p1u) 6811 | -6/Factory | Destroyed by G-67 Veteran with Field Laser Last Messages --------------- U-05 Engineer builds a Wall. G-50 Soldier destroyed. U-05 Engineer builds a Wall. Acquired Lgt. Treads. U-05 Engineer builds a Wall. Acquired 56 matter. Acquired 24 matter. Acquired 14 matter. U-05 Engineer builds a Door. U-05 Engineer lays Concrete. U-05 Engineer builds a Wall. U-05 Engineer lays Concrete. C-30 ARC bursts open, deploying its payload. G-50 Soldier unfolds itself. M-28 Smith unfolds itself. U-05 Engineer lays Concrete. Lgt. Treads destroyed. U-05 Engineer lays Concrete. The unstable cave ceiling collapses. U-05 Engineer lays Concrete. Map ----- +----------------------------------------------------+ | ???????????????????????????# ! #????????????? | | ???????????????????????????# #????????????? | | ???????????????????????????# """ #????????????? | | ???????????????????????????# """ #????????????? | | ???????????????????????????# ! " #????????????? | | ??????????????????########## "F" #????????????? | | ??????????????????# # """ #????????????? | | ??????????????????# """ # #????????????? | | ??????????????????# """ #####+################# | | ??????????????????# """ + + | | ??????????????????# ##### # | | ??????????????????# """ #???# # | | ??????????????????# """ #???# # | | ??????????????????# """ #???# # | | ??????????????????# #???# # | | ??????????????????# """ #???# # | | ??????????????????# """ #???# # | | ??????????????????# """ #???? ########+######## | | ??????????????????# +???? ???????# | | ??????????????????# """ #???? ???????# ######## | | ??????????????????# """ #???# ######## # """" | | ????????########### ! """ #???# % + ! ""T" | | ????????# ## #????#########!# | | ????????# === #######??????#|#??""""" | | ????????# == ######/## #??????#*#????""" | | ????????# == @ #???""?#=#??????? | | ????????# < +???T"?#%#??????? | | ????????# #???""?#%#??????? | | ????????# ug ######## #??????#%###????? | | ????????# =% * gg# ##??????### ###???####+######## | | ????????# % #?????????? #????## % * % | | ????????#######+# #?????????? #?????# ! = | | ????????? %%= ??????? #?????# %=%*== | | ????????############### #???##?????# = | | ??????????????????????????#??????????# [|* = | | ?????????????????????????????????????# | | ?????????????????????????????????????# / | | ?????????????????????????????????????# | | ?????????????????????????????????????# | | ?????????????????????????????????????############# | | ?????????????????????????????????????????????????? | | ?????????????????????????????????????????????????? | | ?????????????????????????????????????????????????? | | ?????????????????????????????????????????????????? | | ?????????????????????????????????????????????????? | | ?????????????????????????????????????????????????? | | ?????????????????????????????????????????????????? | | ??????????????????????????????"??????????????????? | | ??????????????????????????????"??????????????????? | | ??????????????????????????????"??????????????????? | +----------------------------------------------------+ Best States ------------- Heat Dissipation 64 Energy Generation 34 Energy Capacity 480 Matter Stores 300 Matter Capacity 300 Sight Range 16 Terrain Scan Density 10 Resistance: TH 20 Core Shielding 20 Weapon Shielding 33 Evasion (%) 62 Targeting Accuracy 20 Recoil Reduction 3 Matter Filtering 30 Energy Filtering 30 Particle Charging 20 Item Schematics ----------------- Proton Missile Launcher | -7/Zion | Archive Phase Cannon | -7/Zion | Archive Remote Datajack | -7/Zion | Archive Recalibrator | -7/Zion | Archive Lightning Gun | -7/Zion | Archive Thermic Laser | -7/Zion | Archive Force Field | -7/Zion | Archive Adv. Shield Generator | -7/Zion | Archive Imp. Medium Treads | -7/Zion | Archive Gauss Rifle | -7/Zion | Archive Matter Compressor | -7/Zion | Archive Gravmag System | -7/Zion | Archive Imp. Thermal Generator | -7/Zion | Archive Spear | -7/Zion | Archive Imp. Weapon Cycler | -7/Zion | Archive Robot Schematics ------------------ A-02 Transporter | -7/Zion | Archive T-07 Excavator | -7/Zion | Archive Y-45 Defender | -7/Zion | Archive G-73 Enforcer | -7/Zion | Archive Fabricated ------------ Nothing Repaired ---------- Nothing Alien Tech Used ----------------- None Achievements -------------- None Challenges ------------ None Game ------ Seed GravmagSeismicMapper Manual? 0 Play Time 00:45:12 Cumulative 103.3 hours Start 2025.08.23 @ 13:28:21 End 2025.08.24 @ 08:42:05 Sessions 1 Manual Loads 0 Difficulty Rogue Special Mode None Game No. 390 Rogue 390 Adventurer 0 Explorer 0 Win Type - Total 0 Types 0/0/0/0/0/0/0/0/0/0 Lore% 43 Gallery% 42 Achievement% 31 Wizard Run 0 Options --------- Layout 2 ASCII 0 Keyboard 0 Movement Mouse Keybinds 0 Fullscreen 2 Font 24/Smallcaps Map View 50x44 Zoom Use 0% Tactical HUD 0 Map Filters NONE Filters NONE Steam 1 RUN: 4996a97c-6746-4682-8251-8ca13be111d0